fUSD/lending_fUSD_20241112
["ID","MTS","AMOUNT","RATE_DAILY","PERIOD"]
[342030768,1731372117647,1068.7,0.00013698,7]
[342030769,1731372117678,400.0,0.0001245,2]
[342030770,1731372117821,1068.7,0.00013999,7]
[342030771,1731372118083,1068.7,0.00013999,7]
[342030772,1731372118394,1068.7,0.00013999,7]
[342030773,1731372118660,1068.7,0.00013999,7]
[342030774,1731372118918,1068.7,0.00013999,7]
[342030775,1731372119176,1068.7,0.00013999,7]
[342030776,1731372119789,1068.7,0.00013999,7]
[342030777,1731372120065,1068.7,0.00013999,7]
[342030778,1731372128230,520.39,0.00012435,2]
[342030779,1731372157742,350.0,0.0001245,3]
[342030780,1731372232317,187.44,0.00012399,2]
[342030784,1731372297388,250.0,0.00012379,2]
[342030785,1731372330745,150.0,0.00020814,120]
[342030786,1731372333941,1493.7,0.00010443,2]
[342030787,1731372347620,3425.87,0.00012344,2]
[342030789,1731372352094,-1000.0,0.00012604,2]
[342030790,1731372352115,-2751.0,0.00012605,2]
[342030791,1731372352136,-159.33,0.00012621,2]
[342030792,1731372352353,-528.65,0.00012682,2]
[342030793,1731372352376,-1493.7,0.00012707,2]
[342030794,1731372352397,-18966.5911777,0.00012707,2]
[342030795,1731372352418,-150.0,0.00012712,2]
[342030796,1731372352439,-300.0,0.00012714,2]
[342030797,1731372352459,-1127.77,0.00012716,2]
[342030798,1731372352479,-1892.98,0.00012758,2]
[342030799,1731372352501,-200.0,0.00012758,2]
[342030800,1731372352521,-164.77,0.00012758,2]
[342030801,1731372352542,-641.85,0.00012781,2]
[342030802,1731372352562,-150.0,0.00012799,2]
[342030803,1731372352583,-1031.0008,0.000128,2]
[342030804,1731372352604,-255.73,0.000128,2]
[342030805,1731372352624,-1339.83,0.000128,2]
[342030806,1731372352645,-1977.5079,0.000128,2]
[342030807,1731372352666,-1188.00785854,0.000128,2]
[342030808,1731372353085,-1811.99214146,0.000128,2]
[342030809,1731372353107,-3988.23219856,0.000128,2]
[342030810,1731372353128,-697.95,0.000128,2]
[342030811,1731372353148,-20413.04014774,0.0001289,2]
[342030812,1731372353169,-443.18,0.0001289,2]
[342030813,1731372353190,-930.65,0.0001289,2]
[342030814,1731372353210,-468.52,0.0001289,2]
[342030815,1731372353230,-8667.25,0.0001289,2]
[342030816,1731372353257,-6367.88,0.00012893,2]
[342030817,1731372353279,-368.81,0.00012893,2]
[342030818,1731372353301,-36003.21760494,0.000129,2]
[342030820,1731372439095,-580.52,0.00012554,2]
[342030821,1731372439115,-195.24,0.00012558,2]
[342030822,1731372439135,-834.228,0.000128,2]
[342030823,1731372439155,-1973.9197,0.000128,2]
[342030824,1731372439175,-300.0,0.00012899,2]
[342030825,1731372439194,-66206.11189506,0.000129,2]
[342030826,1731372439213,-1000.0,0.000129,2]
[342030827,1731372439234,-3988.23219852,0.00013033,2]
[342030828,1731372439253,-528.65,0.00013035,2]
[342030829,1731372439273,-580.52,0.00013182,2]
[342030830,1731372439294,-3988.23219852,0.00013267,2]
[342030831,1731372439314,-528.65,0.00013389,2]
[342030832,1731372439335,-999.99,0.0001342,2]
[342030833,1731372439355,-150.99,0.0001342,2]
[342030834,1731372439376,-352.7,0.0001342,2]
[342030835,1731372439397,-372.17,0.00013435,2]
[342030836,1731372439416,-372.17,0.00013443,2]
[342030837,1731372439437,-372.17,0.0001345,2]
[342030838,1731372439458,-372.17,0.00013457,2]
[342030839,1731372439478,-372.17,0.00013464,2]
[342030840,1731372439499,-372.17,0.00013471,2]
[342030841,1731372439519,-372.17,0.00013478,2]
[342030842,1731372439540,-372.17,0.00013485,2]
[342030843,1731372439561,-372.17,0.00013492,2]
[342030844,1731372439584,-372.17,0.00013499,2]
[342030845,1731372439606,-3988.23219852,0.000135,2]
[342030846,1731372439628,-372.17,0.00013506,2]
[342030847,1731372439649,-372.17,0.00013513,2]
[342030848,1731372439671,-372.17,0.0001352,2]
[342030849,1731372439692,-372.17,0.00013527,2]
[342030850,1731372439713,-372.17,0.00013534,2]
[342030851,1731372439734,-372.17,0.00013541,2]
[342030852,1731372439757,-372.17,0.00013549,2]
[342030853,1731372439781,-372.17,0.00013556,2]
[342030854,1731372439802,-372.17,0.00013563,2]
[342030855,1731372439824,-372.17,0.0001357,2]
[342030856,1731372439847,-15681.41108467,0.00013583,2]
[342030857,1731372451101,-21801.58891533,0.00013583,2]
[342030858,1731372451120,-1376.1129,0.00013589,2]
[342030859,1731372451140,-226.72162567,0.00013598,2]
[342030860,1731372451159,-573.8441,0.00013598,2]
[342030861,1731372451179,-1202.4042,0.00013598,2]
[342030862,1731372451198,-4107.1976,0.00013598,2]
[342030863,1731372451217,-1000.0,0.00013598,2]
[342030864,1731372451237,-700.0,0.000136,4]
[342030865,1731372451257,-530.89,0.00013628,2]
[342030866,1731372451278,-413.35230834,0.00013633,2]
[342030867,1731372451300,-269.089936,0.00013637,2]
[342030868,1731372451323,-165.22,0.0001365,2]
[342030869,1731372451343,-500.0,0.00013673,2]
[342030870,1731372451364,-160.59230082,0.00013673,2]
[342030871,1731372451384,-294.07003009,0.00013698,2]
[342030872,1731372451403,-500.0,0.00013698,2]
[342030873,1731372451423,-500.0,0.00013698,2]
[342030874,1731372451442,-500.0,0.00013698,2]
[342030875,1731372451461,-500.0,0.00013698,2]
[342030876,1731372451481,-500.0,0.00013698,2]
[342030877,1731372451502,-537.51330753,0.00013698,2]
[342030878,1731372570737,150.0,0.00022205,120]
[342030891,1731372631628,-159.56,0.00013191,2]
[342030892,1731372631637,-1721.6934,0.00013598,2]
[342030893,1731372631647,-150.0,0.00013697,2]
[342030894,1731372631656,-300.0,0.00013697,2]
[342030895,1731372631667,-500.0,0.00013698,2]
[342030896,1731372631678,-500.0,0.00013698,2]
[342030897,1731372631689,-500.0,0.00013698,2]
[342030898,1731372631699,-500.0,0.00013698,2]
[342030899,1731372631709,-500.0,0.00013698,2]
[342030900,1731372631719,-500.0,0.00013698,2]
[342030901,1731372631729,-500.0,0.00013698,2]
[342030902,1731372631739,-500.0,0.00013698,2]
[342030903,1731372631749,-500.0,0.00013698,2]
[342030904,1731372631759,-500.0,0.00013698,2]
[342030905,1731372631769,-399.42,0.00013698,2]
[342030906,1731372631778,-1516.4,0.00013698,2]
[342030907,1731372631788,-1516.4,0.00013698,2]
[342030908,1731372631797,-1516.4,0.00013698,2]
[342030909,1731372631807,-1516.4,0.00013698,2]
[342030910,1731372631817,-1516.4,0.00013698,2]
[342030911,1731372631826,-1125.0,0.00013698,2]
[342030912,1731372631835,-500.0,0.00013698,2]
[342030913,1731372631845,-500.0,0.00013698,2]
[342030914,1731372631854,-500.0,0.00013698,2]
[342030915,1731372631864,-500.0,0.00013698,2]
[342030916,1731372631873,-500.0,0.00013698,2]
[342030917,1731372631882,-500.0,0.00013698,2]
[342030918,1731372631891,-500.0,0.00013698,2]
[342030919,1731372631900,-500.0,0.00013698,2]
[342030920,1731372631909,-500.0,0.00013698,2]
[342030921,1731372631920,-500.0,0.00013698,2]
[342030922,1731372631929,-500.0,0.00013698,2]
[342030923,1731372631940,-500.0,0.00013698,2]
[342030924,1731372631950,-500.0,0.00013698,2]
[342030925,1731372631959,-500.0,0.00013698,2]
[342030926,1731372631968,-500.0,0.00013698,2]
[342030927,1731372631977,-500.0,0.00013698,2]
[342030929,1731372631986,-500.0,0.00013698,2]
[342030931,1731372631995,-500.0,0.00013698,2]
[342030933,1731372632004,-500.0,0.00013698,2]
[342030935,1731372632014,-500.0,0.00013698,2]
[342030937,1731372632024,-500.0,0.00013698,2]
[342030939,1731372632033,-500.0,0.00013698,2]
[342030941,1731372632043,-616.18390026,0.00013698,2]
[342030943,1731372632052,-500.0,0.00013698,2]
[342030945,1731372632061,-500.0,0.00013698,2]
[342030947,1731372632070,-500.0,0.00013698,2]
[342030949,1731372632079,-1029.59,0.00013698,2]
[342030952,1731372632089,-1029.59,0.00013698,2]
[342030953,1731372632098,-1029.59,0.00013698,2]
[342030954,1731372632107,-1029.59,0.00013698,2]
[342030956,1731372632117,-1029.59,0.00013698,2]
[342030958,1731372632126,-500.0,0.00013698,2]
[342030960,1731372632135,-500.0,0.00013698,2]
[342030962,1731372632145,-909.28,0.00013698,2]
[342030964,1731372632154,-909.28,0.00013698,2]
[342030966,1731372632164,-909.28,0.00013698,2]
[342030968,1731372632175,-909.28,0.00013698,2]
[342030970,1731372632184,-909.28,0.00013698,2]
[342030972,1731372632195,-782.33,0.00013698,2]
[342030974,1731372632205,-782.33,0.00013698,2]
[342030976,1731372632214,-500.0,0.00013698,2]
[342030978,1731372632224,-782.33,0.00013698,2]
[342030980,1731372632234,-500.0,0.00013698,2]
[342030982,1731372632244,-782.33,0.00013698,2]
[342030984,1731372632254,-500.0,0.00013698,2]
[342030986,1731372632264,-782.33,0.00013698,2]
[342030988,1731372632274,-500.0,0.00013698,2]
[342030990,1731372632284,-500.0,0.00013698,2]
[342030992,1731372632294,-500.0,0.00013698,2]
[342030994,1731372632304,-1084.44,0.00013698,2]
[342030996,1731372632313,-1084.44,0.00013698,2]
[342030998,1731372632322,-500.0,0.00013698,2]
[342031000,1731372632332,-1084.44,0.00013698,2]
[342031001,1731372632342,-500.0,0.00013698,2]
[342031003,1731372632351,-1084.44,0.00013698,2]
[342031005,1731372632360,-500.0,0.00013698,2]
[342031008,1731372632371,-1084.44,0.00013698,2]
[342031010,1731372632381,-500.0,0.00013698,2]
[342031012,1731372632392,-500.0,0.00013698,2]
[342031014,1731372632402,-500.0,0.00013698,2]
[342031016,1731372632411,-500.0,0.00013698,2]
[342031018,1731372632421,-500.0,0.00013698,2]
[342031020,1731372632431,-500.0,0.00013698,2]
[342031022,1731372632445,-500.0,0.00013698,2]
[342031024,1731372632455,-500.0,0.00013698,2]
[342031026,1731372632465,-500.0,0.00013698,2]
[342031027,1731372632474,-620.08215075,0.00013698,2]
[342031029,1731372632484,-500.0,0.00013698,2]
[342031031,1731372632494,-500.0,0.00013698,2]
[342031033,1731372632503,-500.0,0.00013698,2]
[342031035,1731372632513,-500.0,0.00013698,2]
[342031037,1731372632523,-500.0,0.00013698,2]
[342031040,1731372632532,-500.0,0.00013698,2]
[342031041,1731372632541,-617.56482569,0.00013698,2]
[342031043,1731372632551,-500.0,0.00013698,2]
[342031045,1731372632560,-500.0,0.00013698,2]
[342031047,1731372632569,-500.0,0.00013698,2]
[342031049,1731372632579,-500.0,0.00013698,2]
[342031051,1731372632588,-500.0,0.00013698,2]
[342031053,1731372632598,-500.0,0.00013698,2]
[342031055,1731372632607,-500.0,0.00013698,2]
[342031057,1731372632617,-500.0,0.00013698,2]
[342031059,1731372632626,-500.0,0.00013698,2]
[342031061,1731372632636,-500.0,0.00013698,2]
[342031063,1731372632646,-500.0,0.00013698,2]
[342031065,1731372632656,-500.0,0.00013698,2]
[342031067,1731372632666,-500.0,0.00013698,2]
[342031069,1731372632677,-155.62,0.00013698,2]
[342031071,1731372632687,-500.0,0.00013698,2]
[342031073,1731372632700,-500.0,0.00013698,2]
[342031075,1731372632710,-449.09777633,0.00013698,2]
[342031077,1731372632719,-500.0,0.00013698,2]
[342031079,1731372632729,-500.0,0.00013698,2]
[342031081,1731372632738,-500.0,0.00013698,2]
[342031083,1731372632747,-500.0,0.00013698,2]
[342031085,1731372632757,-500.0,0.00013698,2]
[342031087,1731372632767,-500.0,0.00013698,2]
[342031089,1731372632776,-500.0,0.00013698,2]
[342031091,1731372632786,-500.0,0.00013698,2]
[342031092,1731372632795,-477.6565308,0.00013698,2]
[342031094,1731372632806,-500.0,0.00013698,2]
[342031096,1731372632816,-500.0,0.00013698,2]
[342031098,1731372632826,-500.0,0.00013698,2]
[342031100,1731372632836,-500.0,0.00013698,2]
[342031102,1731372632845,-500.0,0.00013698,2]
[342031104,1731372632855,-500.0,0.00013698,2]
[342031106,1731372632865,-500.0,0.00013698,2]
[342031108,1731372632875,-500.0,0.00013698,2]
[342031109,1731372632885,-500.0,0.00013698,2]
[342031110,1731372632895,-500.0,0.00013698,2]
[342031111,1731372632904,-500.0,0.00013698,2]
[342031112,1731372632914,-500.0,0.00013698,2]
[342031113,1731372632923,-500.0,0.00013698,2]
[342031114,1731372632932,-637.16,0.00013698,2]
[342031115,1731372632942,-637.16,0.00013698,2]
[342031116,1731372632952,-637.16,0.00013698,2]
[342031117,1731372632961,-637.16,0.00013698,2]
[342031118,1731372632971,-637.16,0.00013698,2]
[342031119,1731372632980,-500.0,0.00013698,2]
[342031120,1731372632990,-546.66,0.00013698,2]
[342031121,1731372632999,-500.0,0.00013698,2]
[342031122,1731372633009,-500.0,0.00013698,2]
[342031123,1731372633018,-500.0,0.00013698,2]
[342031124,1731372633027,-500.0,0.00013698,2]
[342031125,1731372633037,-500.0,0.00013698,2]
[342031126,1731372633046,-500.04536362,0.00013698,2]
[342031127,1731372633055,-347.6,0.00013698,2]
[342031128,1731372633065,-500.0,0.00013698,2]
[342031129,1731372633074,-500.0,0.00013698,2]
[342031130,1731372633083,-494.97613082,0.00013698,2]
[342031131,1731372633093,-508.05043767,0.00013698,2]
[342031132,1731372633102,-500.0,0.00013698,2]
[342031133,1731372633112,-230.54986302,0.00013698,2]
[342031134,1731372633121,-574.52321541,0.00013698,2]
[342031135,1731372633131,-500.0,0.00013698,2]
[342031136,1731372633141,-500.0,0.00013698,2]
[342031137,1731372633151,-286.23069024,0.00013698,2]
[342031138,1731372633160,-500.0,0.00013698,2]
[342031139,1731372633170,-500.0,0.00013698,2]
[342031140,1731372633180,-500.0,0.00013698,2]
[342031141,1731372633189,-500.0,0.00013698,2]
[342031142,1731372633203,-500.0,0.00013698,2]
[342031143,1731372633213,-1743.02,0.00013698,2]
[342031144,1731372633224,-1743.02,0.00013698,2]
[342031145,1731372633234,-1743.02,0.00013698,2]
[342031146,1731372633244,-1743.02,0.00013698,2]
[342031147,1731372633254,-1743.02,0.00013698,2]
[342031148,1731372633265,-500.0,0.00013698,2]
[342031149,1731372633275,-532.49,0.00013698,2]
[342031150,1731372633285,-368.91663722,0.00013698,2]
[342031151,1731372633294,-500.0,0.00013698,2]
[342031152,1731372633304,-500.0,0.00013698,2]
[342031153,1731372633314,-500.0,0.00013698,2]
[342031154,1731372633324,-500.0,0.00013698,2]
[342031155,1731372633334,-500.0,0.00013698,2]
[342031156,1731372633343,-500.0,0.00013698,2]
[342031157,1731372633353,-500.0,0.00013698,2]
[342031158,1731372633363,-500.0,0.00013698,2]
[342031159,1731372633373,-500.0,0.00013698,2]
[342031160,1731372633382,-500.0,0.00013698,2]
[342031161,1731372633391,-500.0,0.00013698,2]
[342031162,1731372633401,-500.0,0.00013698,2]
[342031163,1731372633411,-500.0,0.00013698,2]
[342031164,1731372633420,-500.0,0.00013698,2]
[342031165,1731372633431,-535.40903834,0.00013698,2]
[342031166,1731372633442,-500.0,0.00013698,2]
[342031167,1731372633452,-500.0,0.00013698,2]
[342031168,1731372633462,-500.0,0.00013698,2]
[342031169,1731372633472,-500.0,0.00013698,2]
[342031170,1731372633481,-500.0,0.00013698,2]
[342031171,1731372633491,-213.68,0.00013698,2]
[342031172,1731372633500,-500.0,0.00013698,2]
[342031173,1731372633745,-500.0,0.00013698,2]
[342031174,1731372633758,-500.0,0.00013698,2]
[342031175,1731372633768,-500.0,0.00013698,2]
[342031176,1731372633779,-500.0,0.00013698,2]
[342031177,1731372633789,-500.0,0.00013698,2]
[342031178,1731372633800,-500.0,0.00013698,2]
[342031179,1731372633810,-249.64054747,0.00013698,2]
[342031180,1731372633820,-500.0,0.00013698,2]
[342031181,1731372633830,-500.0,0.00013698,2]
[342031182,1731372633839,-500.0,0.00013698,2]
[342031183,1731372633849,-500.0,0.00013698,2]
[342031184,1731372633859,-500.0,0.00013698,2]
[342031185,1731372633869,-500.0,0.00013698,2]
[342031186,1731372633879,-500.0,0.00013698,2]
[342031187,1731372633888,-500.0,0.00013698,2]
[342031188,1731372633898,-500.0,0.00013698,2]
[342031189,1731372633907,-500.0,0.00013698,2]
[342031190,1731372633917,-500.0,0.00013698,2]
[342031191,1731372633926,-460.24014816,0.00013698,2]
[342031192,1731372633936,-500.0,0.00013698,2]
[342031193,1731372633947,-500.0,0.00013698,2]
[342031194,1731372633956,-500.0,0.00013698,2]
[342031195,1731372633967,-500.0,0.00013698,2]
[342031196,1731372633977,-500.0,0.00013698,2]
[342031197,1731372633987,-500.0,0.00013698,2]
[342031198,1731372633996,-528.87556333,0.00013698,2]
[342031199,1731372634006,-500.0,0.00013698,2]
[342031200,1731372634016,-500.0,0.00013698,2]
[342031201,1731372634025,-500.0,0.00013698,2]
[342031202,1731372634035,-500.0,0.00013698,2]
[342031203,1731372634044,-500.0,0.00013698,2]
[342031204,1731372634054,-500.0,0.00013698,2]
[342031205,1731372634064,-500.0,0.00013698,2]
[342031206,1731372634074,-500.0,0.00013698,2]
[342031207,1731372634083,-500.0,0.00013698,2]
[342031208,1731372634092,-500.0,0.00013698,2]
[342031209,1731372634102,-527.76,0.00013698,2]
[342031210,1731372634111,-500.0,0.00013698,2]
[342031211,1731372634121,-500.0,0.00013698,2]
[342031212,1731372634130,-599.84,0.00013698,2]
[342031213,1731372634139,-251.51066998,0.00013698,2]
[342031214,1731372634169,-248.48933002,0.00013698,2]
[342031215,1731372634179,-500.0,0.00013698,2]
[342031216,1731372634189,-500.0,0.00013698,2]
[342031217,1731372634199,-608.92199504,0.00013698,2]
[342031218,1731372634208,-500.0,0.00013698,2]
[342031219,1731372634218,-500.0,0.00013698,2]
[342031220,1731372634227,-500.0,0.00013698,2]
[342031221,1731372634237,-500.0,0.00013698,2]
[342031222,1731372634246,-500.0,0.00013698,2]
[342031223,1731372634256,-500.0,0.00013698,2]
[342031224,1731372634265,-500.0,0.00013698,2]
[342031225,1731372634275,-207.3,0.00013698,2]
[342031226,1731372634285,-500.0,0.00013698,2]
[342031227,1731372634294,-500.0,0.00013698,2]
[342031228,1731372634303,-500.0,0.00013698,2]
[342031229,1731372634313,-500.0,0.00013698,2]
[342031230,1731372634323,-500.0,0.00013698,2]
[342031231,1731372634332,-442.89723494,0.00013698,2]
[342031232,1731372634342,-500.0,0.00013698,2]
[342031233,1731372634352,-500.0,0.00013698,2]
[342031234,1731372634361,-500.0,0.00013698,2]
[342031235,1731372634371,-507.19118176,0.00013698,2]
[342031236,1731372634380,-500.0,0.00013698,2]
[342031237,1731372634389,-500.0,0.00013698,2]
[342031238,1731372634399,-500.0,0.00013698,2]
[342031239,1731372634408,-291.07103709,0.00013698,2]
[342031240,1731372634417,-500.0,0.00013698,2]
[342031241,1731372634427,-500.0,0.00013698,2]
[342031242,1731372634436,-500.0,0.00013698,2]
[342031243,1731372634448,-500.0,0.00013698,2]
[342031244,1731372634457,-500.0,0.00013698,2]
[342031245,1731372634467,-500.0,0.00013698,2]
[342031246,1731372634477,-500.0,0.00013698,2]
[342031247,1731372634487,-535.19210736,0.00013698,2]
[342031248,1731372634496,-212.0926789,0.00013698,2]
[342031249,1731372634505,-500.0,0.00013698,2]
[342031250,1731372634515,-500.0,0.00013698,2]
[342031251,1731372634524,-500.0,0.00013698,2]
[342031252,1731372634534,-500.0,0.00013698,2]
[342031253,1731372634543,-514.15,0.00013698,2]
[342031254,1731372634552,-514.53312889,0.00013698,2]
[342031255,1731372634562,-500.0,0.00013698,2]
[342031256,1731372634572,-500.0,0.00013698,2]
[342031257,1731372634581,-500.0,0.00013698,2]
[342031258,1731372634591,-500.0,0.00013698,2]
[342031259,1731372634601,-500.0,0.00013698,2]
[342031260,1731372634611,-500.0,0.00013698,2]
[342031261,1731372634622,-500.0,0.00013698,2]
[342031262,1731372634632,-604.436141,0.00013698,2]
[342031263,1731372634641,-500.0,0.00013698,2]
[342031264,1731372634651,-500.0,0.00013698,2]
[342031265,1731372634661,-500.0,0.00013698,2]
[342031266,1731372634671,-500.0,0.00013698,2]
[342031267,1731372634682,-500.0,0.00013698,2]
[342031268,1731372634692,-538.25726064,0.00013698,2]
[342031269,1731372634702,-500.0,0.00013698,2]
[342031270,1731372634712,-500.0,0.00013698,2]
[342031271,1731372634721,-522.95605043,0.00013698,2]
[342031272,1731372634731,-500.0,0.00013698,2]
[342031273,1731372634741,-500.0,0.00013698,2]
[342031274,1731372634751,-500.0,0.00013698,2]
[342031275,1731372634761,-500.0,0.00013698,2]
[342031276,1731372634771,-500.0,0.00013698,2]
[342031277,1731372634781,-500.0,0.00013698,2]
[342031278,1731372634791,-327.56762215,0.00013698,2]
[342031279,1731372634801,-500.0,0.00013698,2]
[342031280,1731372634811,-500.0,0.00013698,2]
[342031281,1731372634820,-500.0,0.00013698,2]
[342031282,1731372634831,-500.0,0.00013698,2]
[342031283,1731372634841,-500.0,0.00013698,2]
[342031284,1731372634850,-500.0,0.00013698,2]
[342031285,1731372634860,-500.0,0.00013698,2]
[342031286,1731372634869,-500.0,0.00013698,2]
[342031287,1731372634879,-338.20126576,0.00013698,2]
[342031288,1731372634888,-500.0,0.00013698,2]
[342031289,1731372634898,-500.0,0.00013698,2]
[342031290,1731372634907,-500.0,0.00013698,2]
[342031291,1731372634917,-500.30691987,0.00013698,2]
[342031292,1731372634927,-500.0,0.00013698,2]
[342031293,1731372634937,-503.68728416,0.00013698,2]
[342031294,1731372634949,-500.0,0.00013698,2]
[342031295,1731372634960,-500.0,0.00013698,2]
[342031296,1731372634970,-500.0,0.00013698,2]
[342031297,1731372634980,-500.0,0.00013698,2]
[342031298,1731372634990,-496.24,0.00013698,2]
[342031299,1731372635000,-500.0,0.00013698,2]
[342031300,1731372635010,-500.0,0.00013698,2]
[342031301,1731372635019,-500.0,0.00013698,2]
[342031302,1731372635028,-500.0,0.00013698,2]
[342031303,1731372635037,-500.0,0.00013698,2]
[342031304,1731372635047,-500.0,0.00013698,2]
[342031305,1731372635056,-500.0,0.00013698,2]
[342031306,1731372635066,-597.16087243,0.00013698,2]
[342031307,1731372635075,-500.0,0.00013698,2]
[342031308,1731372635085,-503.20749817,0.00013698,2]
[342031309,1731372635094,-500.0,0.00013698,2]
[342031310,1731372635103,-500.0,0.00013698,2]
[342031311,1731372635111,-500.0,0.00013698,2]
[342031312,1731372635121,-500.0,0.00013698,2]
[342031313,1731372635130,-500.0,0.00013698,2]
[342031314,1731372635139,-389.97,0.00013698,2]
[342031315,1731372635148,-500.0,0.00013698,2]
[342031316,1731372635157,-500.0,0.00013698,2]
[342031317,1731372635166,-500.0,0.00013698,2]
[342031318,1731372635175,-393.96599705,0.00013698,2]
[342031319,1731372635183,-500.0,0.00013698,2]
[342031320,1731372635196,-500.0,0.00013698,2]
[342031321,1731372635205,-500.0,0.00013698,2]
[342031322,1731372635214,-500.0,0.00013698,2]
[342031323,1731372635223,-500.0,0.00013698,2]
[342031324,1731372635232,-500.0,0.00013698,2]
[342031325,1731372635241,-500.0,0.00013698,2]
[342031326,1731372635250,-500.0,0.00013698,2]
[342031327,1731372635259,-500.0,0.00013698,2]
[342031328,1731372635267,-500.0,0.00013698,2]
[342031329,1731372635277,-250.12,0.00013698,2]
[342031330,1731372635286,-500.0,0.00013698,2]
[342031331,1731372635295,-500.0,0.00013698,2]
[342031332,1731372635304,-500.0,0.00013698,2]
[342031333,1731372635314,-500.0,0.00013698,2]
[342031334,1731372635323,-500.0,0.00013698,2]
[342031335,1731372635333,-500.0,0.00013698,2]
[342031336,1731372635343,-500.0,0.00013698,2]
[342031337,1731372635352,-502.18299132,0.00013698,2]
[342031338,1731372635361,-500.0,0.00013698,2]
[342031339,1731372635371,-500.0,0.00013698,2]
[342031340,1731372635380,-500.0,0.00013698,2]
[342031341,1731372635389,-500.0,0.00013698,2]
[342031342,1731372635398,-500.0,0.00013698,2]
[342031343,1731372635407,-500.0,0.00013698,2]
[342031344,1731372635417,-1139.61,0.00013698,2]
[342031345,1731372635426,-519.12204157,0.00013698,2]
[342031346,1731372635435,-500.0,0.00013698,2]
[342031347,1731372635446,-500.0,0.00013698,2]
[342031348,1731372635455,-450.9,0.00013698,2]
[342031349,1731372635464,-500.0,0.00013698,2]
[342031350,1731372635473,-500.0,0.00013698,2]
[342031351,1731372635483,-501.86935119,0.00013698,2]
[342031352,1731372635492,-438.72799761,0.00013698,2]
[342031353,1731372635503,-500.0,0.00013698,2]
[342031354,1731372635512,-500.0,0.00013698,2]
[342031355,1731372635522,-500.0,0.00013698,2]
[342031356,1731372635531,-570.87,0.00013698,2]
[342031357,1731372635540,-500.0,0.00013698,2]
[342031358,1731372635549,-500.0,0.00013698,2]
[342031359,1731372635558,-500.0,0.00013698,2]
[342031360,1731372635567,-500.0,0.00013698,2]
[342031361,1731372635576,-1000.0,0.00013698,2]
[342031362,1731372635585,-500.0,0.00013698,2]
[342031363,1731372635594,-500.0,0.00013698,2]
[342031364,1731372635603,-500.0,0.00013698,2]
[342031365,1731372635611,-500.0,0.00013698,2]
[342031366,1731372635620,-500.0,0.00013698,2]
[342031367,1731372635630,-500.0,0.00013698,2]
[342031368,1731372635639,-500.0,0.00013698,2]
[342031369,1731372635647,-500.0,0.00013698,2]
[342031370,1731372635656,-500.0,0.00013698,2]
[342031371,1731372635666,-507.38363397,0.00013698,2]
[342031372,1731372635675,-500.0,0.00013698,2]
[342031373,1731372635685,-500.0,0.00013698,2]